fUSD/lending_fUSD_20240327
["ID","MTS","AMOUNT","RATE_DAILY","PERIOD"]
[320706437,1711524637839,-60.37536342,0.00031068,2]
[320706438,1711524637860,-439.84463658,0.00031068,2]
[320706439,1711524637873,-396.58,0.00031093,2]
[320706440,1711524637884,-396.58,0.00031177,2]
[320706441,1711524637894,-157.16,0.00031201,120]
[320706442,1711524637903,-396.58,0.00031262,2]
[320706443,1711524637914,-934.19,0.00031278,2]
[320706444,1711524637924,-175.3,0.00031308,2]
[320706445,1711524637934,-3171.58,0.00031339,2]
[320706446,1711524637944,-396.58,0.00031346,2]
[320706447,1711524637955,-396.58,0.0003143,2]
[320706448,1711524637966,-155.41,0.00031433,2]
[320706449,1711524637977,-396.58,0.00031514,2]
[320706450,1711524637986,-155.41,0.00031591,2]
[320706451,1711524637995,-396.58,0.00031598,2]
[320706452,1711524638004,-396.58,0.00031682,2]
[320706453,1711524638013,-396.58,0.00031766,2]
[320706454,1711524638023,-276.9561878,0.00031838,4]
[320706455,1711524638032,-396.58,0.0003185,2]
[320706456,1711524638041,-396.58,0.00031934,2]
[320706457,1711524638051,-424.19093922,0.00031982,4]
[320706458,1711524638060,-181.90900216,0.00031985,2]
[320706459,1711524638069,-262.71,0.0003199,3]
[320706460,1711524638078,-218.93,0.0003199,3]
[320706461,1711524638087,-656.81,0.0003199,3]
[320706462,1711524638097,-2062.64032871,0.00031996,2]
[320706463,1711524638106,-636.00726772,0.00031998,4]
[320706464,1711524638115,-155.68323396,0.00031998,4]
[320706465,1711524638126,-155.32396077,0.00031998,4]
[320706466,1711524638135,-190.18294877,0.00031998,4]
[320706467,1711524638145,-384.65068145,0.00031998,4]
[320706468,1711524638154,-155.36036315,0.00031998,4]
[320706469,1711524638164,-409.90139962,0.00031998,4]
[320706470,1711524638173,-431.05992528,0.00031998,2]
[320706471,1711524638182,-203.93852806,0.00031998,4]
[320706472,1711524638191,-155.25762842,0.00031998,4]
[320706473,1711524638200,-155.64387926,0.00031998,4]
[320706474,1711524638210,-436.84941333,0.00031998,4]
[320706475,1711524638219,-802.66501997,0.00031998,4]
[320706476,1711524638228,-198.69540962,0.00031998,4]
[320706477,1711524638237,-293.50944239,0.00031998,4]
[320706478,1711524638246,-219.14488213,0.00031998,4]
[320706479,1711524638255,-929.26992607,0.00031998,4]
[320706480,1711524638264,-3634.26,0.00031999,2]
[320706482,1711524638273,-34574.39829556,0.00032,2]
[320706484,1711524638286,-12765.70138623,0.00032,2]
[320706485,1711524638306,-2039.97068647,0.00032,2]
[320706486,1711524638317,-758.11221771,0.00032,2]
[320706487,1711524638330,-38436.03590982,0.00032,2]
[320706488,1711524638340,-396.58,0.00032019,2]
[320706489,1711524638349,-150.0,0.00032085,2]
[320706490,1711524638360,-1526.29,0.00032096,2]
[320706491,1711524638369,-396.58,0.00032103,2]
[320706492,1711524638380,-150.0,0.00032139,2]
[320706493,1711524638389,-500.0,0.00032139,2]
[320706494,1711524638398,-396.58,0.00032187,2]
[320706495,1711524638406,-250.0,0.00032235,2]
[320706496,1711524638417,-14091.61,0.00032235,2]
[320706497,1711524638427,-3304.63,0.00032237,2]
[320706498,1711524638437,-396.58,0.00032271,2]
[320706499,1711524638447,-163.0,0.00032548,15]
[320706500,1711524638456,-703.17,0.00033182,2]
[320706501,1711524638467,-437.86,0.0003336,3]
[320706502,1711524638476,-500.0,0.00033382,2]
[320706503,1711524638485,-1195.84,0.00033382,2]
[320706504,1711524638495,-181.90900215,0.00033464,2]
[320706505,1711524638505,-168.26556353,0.00033558,2]
[320706506,1711524638515,-600.0,0.00033616,2]
[320706507,1711524638525,-4122.3,0.00033649,2]
[320706508,1711524638536,-172.16,0.00033655,2]
[320706509,1711524638545,-250.0,0.0003428,2]
[320706510,1711524638556,-23900.0,0.00034375,2]
[320706511,1711524638567,-191.94,0.00034634,2]
[320706512,1711524638576,-2062.64032862,0.00034652,2]
[320706513,1711524638586,-1380.74,0.00034841,2]
[320706514,1711524638595,-181.90900215,0.00034943,2]
[320706515,1711524638605,-157.16,0.00035101,120]
[320706516,1711524638616,-181.90900215,0.00036421,2]
[320706517,1711524638626,-379.98,0.00036475,2]
[320706518,1711524638635,-9718.11,0.00036485,2]
[320706519,1711524638644,-2062.64032862,0.00037308,2]
[320706520,1711524638654,-150.0,0.00037496,2]
[320706521,1711524638664,-18027.84233847,0.000379,120]
[320706522,1711524638674,-153.55361087,0.000379,2]
[320706523,1711524638684,-184.40480275,0.000379,2]
[320706524,1711524638693,-168.26556353,0.000379,2]
[320706525,1711524638703,-1806.02298012,0.000379,8]
[320706526,1711524638713,-181.90900215,0.000379,2]
[320706527,1711524638722,-932.78861701,0.000379,2]
[320706528,1711524638731,-800.0,0.00037945,2]
[320706529,1711524638741,-167.0,0.00037968,15]
[320706530,1711524638750,-177.57,0.00037968,15]
[320706531,1711524638759,-150.5,0.00037978,15]
[320706532,1711524638769,-150.5,0.00037978,15]
[320706533,1711524638778,-499.99,0.00037988,2]
[320706534,1711524638787,-150.5,0.00037988,15]
[320706535,1711524638797,-150.5,0.00037988,15]
[320706536,1711524638806,-379.98,0.00037988,2]
[320706537,1711524638816,-379.98,0.00037988,2]
[320706538,1711524638825,-379.98,0.00037988,2]
[320706539,1711524638836,-379.98,0.00037988,2]
[320706540,1711524638848,-379.98,0.00037988,2]
[320706541,1711524638859,-379.98,0.00037988,2]
[320706542,1711524638870,-379.98,0.00037988,2]
[320706543,1711524638881,-379.98,0.00037988,2]
[320706544,1711524638894,-379.98,0.00037988,2]
[320706545,1711524638903,-939.7846623,0.00037995,2]
[320706546,1711524638912,-673.65490502,0.00037997,30]
[320706547,1711524638921,-2184974.6687789,0.00037998,2]
[320706548,1711524638931,-170.8,0.00038,7]
[320706549,1711524638940,-5859.81548037,0.00038,120]
[320706550,1711524638949,-155.0,0.000387,4]
[320706551,1711524638958,-1000.0,0.00038712,2]
[320706552,1711524638970,-184.40480274,0.000389,2]
[320706553,1711524638980,-157.16,0.00039001,120]
[320706554,1711524638990,-814.0,0.000391,2]
[320706555,1711524638999,-566.8,0.00039249,2]
[320706556,1711524639009,-184.40480274,0.000399,2]
[320706557,1711524639020,-932.78861687,0.00039943,2]
[320706558,1711524639029,-2062.64032862,0.00039964,2]
[320706559,1711524639039,-18260.47926947,0.0004,2]
[320706560,1711524639048,-3357.71176501,0.0004,4]
[320706561,1711524639058,-892.02580912,0.0004,30]
[320706562,1711524639068,-27116.20276935,0.0004,4]
[320706563,1711524639077,-7937.94912886,0.0004,4]
[320706564,1711524639086,-10431.7034283,0.0004,7]
[320706565,1711524639097,-5742.09513247,0.0004,4]
[320706566,1711524639107,-541.27619398,0.0004,120]
[320706567,1711524639117,-2000.0,0.0004,120]
[320706568,1711524639128,-269.18,0.0004,7]
[320706569,1711524639137,-349.64,0.0004,7]
[320706570,1711524639146,-421.01255,0.0004,14]
[320706571,1711524639158,-1806.02298011,0.00040338,9]
[320706572,1711524639169,-172.16,0.00040797,2]
[320706573,1711524639178,-421.01255,0.00040822,14]
[320706574,1711524639188,-7841.77272824,0.00041,4]
[320706575,1711524639199,-161.89,0.00041041,120]
[320706576,1711524639210,-183.0,0.00041096,2]
[320706577,1711524639220,-566.8,0.00041513,2]
[320706578,1711524639229,-421.01255,0.00041644,14]
[320706579,1711524639239,-165.25,0.00041801,2]
[320706580,1711524639248,-421.01255,0.00042466,14]
[320706581,1711524639257,-3171.58,0.00042572,2]
[320706582,1711524639266,-2062.64032862,0.0004262,2]
[320706583,1711524639275,-1806.02298011,0.00042777,11]
[320706584,1711524639285,-150.0,0.00042852,2]
[320706585,1711524639294,-157.16,0.00042901,120]
[320706586,1711524639303,-421.01255,0.00043288,14]
[320706587,1711524639313,-566.8,0.00043777,2]
[320706588,1711524639322,-934.19,0.00043789,2]
[320706589,1711524639331,-269.18,0.000438,7]
[320706590,1711524639341,-349.64,0.000439,7]
[320706591,1711524639350,-421.01255,0.0004411,14]
[320706592,1711524639359,-421.01255,0.00044932,14]
[320706593,1711524639368,-170.8,0.00045,7]
[320706594,1711524639380,-339.22517766,0.00045,10]
[320706595,1711524639389,-500.0,0.00045,14]
[320706596,1711524639399,-22038.94073476,0.00045,4]
[320706597,1711524639408,-1806.02298011,0.00045215,12]
[320706598,1711524639417,-2062.64032862,0.00045276,2]
[320706599,1711524639427,-421.01255,0.00045753,14]
[320706600,1711524639436,-566.8,0.00046041,2]
[320706602,1711524639628,-880.0,0.00046519,2]
[320706604,1711524639638,-421.01255,0.00046575,14]
[320706606,1711524639648,-157.16,0.00046801,120]
[320706607,1711524639658,-2127.63,0.00047087,120]
[320706608,1711524639667,-158.91989118,0.0004714,30]
[320706609,1711524639678,-269.18,0.000472,7]
[320706610,1711524639687,-163.67173015,0.00047203,30]
[320706611,1711524639697,-152.2022302,0.00047251,5]
[320706612,1711524639705,-152.56,0.00047288,5]
[320706613,1711524639714,-421.01255,0.00047397,14]
[320706614,1711524639724,-155.15974478,0.00047469,30]
[320706615,1711524639735,-1806.02298011,0.00047653,13]
[320706616,1711524639745,-349.64,0.000477,7]
[320706617,1711524639754,-58036.70373674,0.00047919,7]
[320706618,1711524639763,-2062.64032862,0.00047932,2]
[320706619,1711524639773,-503.6111413,0.00048,100]
[320706620,1711524639782,-150.0,0.00048209,2]
[320706621,1711524639791,-152.43888631,0.00048219,30]
[320706622,1711524639801,-566.8,0.00048305,2]
[320706623,1711524639810,-10000.0,0.00048385,30]
[320706624,1711524639818,-156.33718315,0.00048451,30]
[320706625,1711524639827,-157.032716,0.00048498,95]
[320706626,1711524639837,-5150.0,0.000486,7]
[320706627,1711524639847,-544.94939,0.000486,43]
[320706628,1711524639858,-1000.0,0.0004868,2]
[320706629,1711524639868,-156.499,0.0004868,2]
[320706630,1711524639879,-39759.5017,0.0004868,2]
[320706631,1711524639890,-563.9451,0.0004868,2]
[320706632,1711524639900,-6834.00745834,0.0004868,2]
[320706633,1711524639910,-419.92478351,0.0004868,44]
[320706634,1711524639919,-1111.0,0.000487,4]
[320706635,1711524639930,-150.0,0.00048728,2]
[320706636,1711524639939,-152.02204846,0.00048732,30]
[320706637,1711524639949,-150.0,0.00048751,2]
[320706638,1711524639960,-10399.47828544,0.00048779,5]
[320706639,1711524639970,-245000.0,0.0004878,2]
[320706640,1711524639980,-27981.0993,0.0004878,2]
[320706641,1711524639990,-7924.0392,0.0004878,2]
[320706642,1711524640000,-179.27503494,0.0004878,120]
[320706643,1711524640009,-709.36350887,0.00048798,10]
[320706644,1711524640019,-157.032716,0.00048798,96]
[320706645,1711524640028,-269.18,0.000488,7]
[320706646,1711524640037,-1968.38727007,0.00048834,4]
[320706647,1711524640047,-155.15974478,0.00048847,30]
[320706648,1711524640057,-800.0,0.00048853,25]
[320706649,1711524640066,-500.0,0.00048853,30]
[320706650,1711524640075,-200.0,0.00048853,30]
[320706651,1711524640085,-161.54400966,0.00048878,4]
[320706652,1711524640095,-279.36790624,0.00048878,4]
[320706653,1711524640104,-2691.0379845,0.00048878,4]
[320706654,1711524640115,-499.52754369,0.00048878,2]
[320706655,1711524640125,-176.45993283,0.00048878,4]
[320706656,1711524640134,-168.68665559,0.00048878,4]
[320706657,1711524640143,-156.24562055,0.00048878,4]
[320706658,1711524640153,-269.31706662,0.00048878,4]
[320706659,1711524640164,-659.37477421,0.00048878,4]
[320706660,1711524640173,-155.78826724,0.00048878,4]
[320706661,1711524640182,-325.4274006,0.00048878,4]
[320706662,1711524640192,-279.66686747,0.00048878,4]
[320706663,1711524640201,-261.86121602,0.00048878,4]
[320706664,1711524640211,-486.8700062,0.00048878,4]
[320706665,1711524640221,-1239.0744,0.00048878,4]
[320706666,1711524640232,-885.84617566,0.00048878,4]
[320706667,1711524640241,-248.79434329,0.00048878,4]
[320706668,1711524640251,-175.43329082,0.00048878,2]
[320706669,1711524640260,-2342.38261578,0.00048878,4]
[320706670,1711524640269,-155.97591928,0.00048878,4]
[320706671,1711524640279,-440.49656693,0.00048878,4]
[320706672,1711524640288,-155.21184533,0.00048878,4]
[320706673,1711524640297,-155.2876622,0.00048878,4]
[320706674,1711524640307,-155.9211492,0.00048878,4]
[320706675,1711524640317,-445.01768348,0.00048878,4]
[320706676,1711524640327,-403.43708532,0.00048878,4]
[320706677,1711524640337,-168.33486966,0.00048878,4]
[320706678,1711524640346,-344.55554774,0.00048878,4]
[320706679,1711524640358,-548.2960006,0.00048878,4]
[320706680,1711524640369,-306.28661421,0.00048878,4]
[320706681,1711524640380,-500.0,0.00048878,2]
[320706682,1711524640390,-180.38765646,0.00048878,4]
[320706683,1711524640400,-155.35466686,0.00048878,4]
[320706684,1711524640410,-1217.21944159,0.00048878,4]
[320706685,1711524640418,-2974.94968194,0.00048878,4]
[320706686,1711524640428,-2163.23429142,0.00048878,4]
[320706687,1711524640438,-268.20192632,0.00048878,4]
[320706688,1711524640449,-156.16267301,0.00048878,4]
[320706689,1711524640458,-236.07933468,0.00048878,2]
[320706690,1711524640469,-314.21314509,0.00048878,4]
[320706691,1711524640478,-4377.94125599,0.00048878,4]
[320706692,1711524640487,-150.0,0.00048879,7]
[320706693,1711524640497,-150.0,0.00048879,7]
[320706694,1711524640506,-150.0,0.00048879,30]
[320706695,1711524640526,-83577.89256424,0.0004888,2]
[320706696,1711524640546,-893994.01924439,0.0004888,2]
[320706697,1711524640559,-1291378.98167147,0.0004888,2]
[320706698,1711524640569,-322.12114218,0.0004888,4]
[320706699,1711524640579,-1165.34035352,0.0004888,4]
[320706700,1711524640589,-2000.0,0.0004888,7]
[320706701,1711524640599,-200.0,0.0004888,7]
[320706702,1711524640609,-2000.0,0.0004888,7]
[320706703,1711524640618,-200.0,0.0004888,7]
[320706704,1711524640630,-349.64,0.000489,7]
[320706705,1711524640639,-544.94939,0.0004891,44]
[320706706,1711524640648,-900.0,0.00049,5]
[320706707,1711524640658,-2023.30618233,0.00049,2]
[320706708,1711524640667,-150.11,0.00049021,2]
[320706709,1711524640676,-9850.28,0.00049154,45]
[320706710,1711524640686,-998.25,0.00049154,2]
[320706711,1711524640696,-157.032716,0.00049198,97]
[320706712,1711524640706,-544.94939,0.0004922,46]
[320706713,1711524640715,-2902.11283,0.00049249,10]
[320706714,1711524640725,-3750.0,0.000493,2]
[320706715,1711524640735,-810.9346388,0.00049315,30]
[320706716,1711524640745,-2000.0,0.00049369,7]
[320706717,1711524640754,-200.0,0.00049369,7]
[320706718,1711524640763,-2000.0,0.00049369,7]
[320706719,1711524640773,-200.0,0.00049369,7]
[320706720,1711524640782,-10000.0,0.00049425,30]
[320706721,1711524640791,-157.032716,0.00049498,98]
[320706722,1711524640801,-544.94939,0.0004954,47]
[320706723,1711524640811,-8323.33217451,0.00049734,26]
[320706724,1711524640821,-157.032716,0.00049798,99]
[320706725,1711524640830,-544.9494,0.0004985,48]
[320706726,1711524640839,-1156.59374322,0.00049862,7]
[320706727,1711524640849,-150.0,0.00049999,7]
[320706728,1711524640859,-233.91285551,0.0005,30]
[320706729,1711524640869,-1000.0,0.0005,30]
[320706730,1711524640881,-2532.0,0.0005,120]
[320706731,1711524640893,-2500.0,0.0005,120]
[320706732,1711524640903,-500.00000099,0.0005,30]
[320706733,1711524640912,-4068.0,0.0005,10]
[320706734,1711524640921,-5000.0,0.0005,30]
[320706735,1711524640932,-2000.0,0.0005,120]
[320706736,1711524640942,-1806.02298011,0.00050091,14]
[320706737,1711524640952,-544.94939,0.0005016,50]
[320706738,1711524640963,-157.032716,0.00050198,100]
[320706739,1711524640972,-419.92478347,0.00050252,47]
[320706740,1711524640986,-155.61,0.00050304,2]
[320706741,1711524640997,-157.032716,0.00050498,97]
[320706742,1711524641007,-155.15974478,0.0005054,60]
[320706743,1711524641017,-566.8,0.00050569,2]
[320706744,1711524641027,-2062.64032862,0.00050588,2]
[320706745,1711524641037,-8323.33217451,0.00050669,27]
[320706746,1711524641047,-150.0,0.00050712,60]
[320706747,1711524641056,-157.032716,0.00050798,99]
[320706748,1711524641066,-152.43888631,0.00050841,60]
[320706749,1711524641076,-472.85269362,0.000509,120]
[320706750,1711524641086,-472.85269356,0.000509,120]
[320706751,1711524641096,-472.85269356,0.000509,120]
[320706752,1711524641106,-472.85269356,0.000509,120]
[320706753,1711524641117,-472.85269356,0.000509,120]
[320706754,1711524641128,-472.85269356,0.000509,120]
[320706755,1711524641137,-472.85269356,0.000509,120]
[320706756,1711524641146,-472.85269356,0.000509,120]
[320706757,1711524641158,-472.85269356,0.000509,120]
[320706758,1711524641168,-472.85269356,0.000509,120]
[320706759,1711524641177,-472.85269356,0.000509,120]
[320706760,1711524641187,-472.85269356,0.000509,120]
[320706761,1711524641197,-472.85269356,0.000509,120]
[320706762,1711524641206,-472.85269356,0.000509,120]
[320706763,1711524641216,-472.85269356,0.000509,120]
[320706764,1711524641225,-472.85269356,0.000509,120]
[320706765,1711524641235,-472.85269356,0.000509,120]
[320706766,1711524641245,-472.85269356,0.000509,120]
[320706767,1711524641258,-200.67803036,0.00051,30]
[320706768,1711524641268,-1056.90079614,0.000511,30]
[320706769,1711524641277,-210.145,0.00051119,120]
[320706770,1711524641287,-971.46,0.00051119,120]
[320706771,1711524641297,-492.089,0.00051119,120]
[320706772,1711524641307,-1123.905,0.00051119,120]
[320706773,1711524641316,-1395.988,0.00051119,120]
[320706774,1711524641326,-13342.866,0.00051119,120]
[320706775,1711524641336,-555.134,0.00051119,120]
[320706776,1711524641347,-2474.182,0.00051119,120]
[320706777,1711524641357,-399.727,0.00051119,120]
[320706778,1711524641367,-150.761,0.00051119,120]
[320706779,1711524641377,-157.032716,0.00051198,100]
[320706780,1711524641387,-3775.28656419,0.00051221,8]
[320706781,1711524641397,-158.91989118,0.00051246,60]
[320706782,1711524641407,-793.0,0.00051286,7]
[320706783,1711524641417,-161.89,0.00051301,120]
[320706784,1711524641426,-155.15974478,0.00051404,60]
[320706785,1711524641436,-157.032716,0.00051498,98]
[320706786,1711524641445,-158.91989118,0.00051502,60]
[320706787,1711524641456,-170.8,0.000516,7]
[320706788,1711524641466,-8323.33217451,0.00051603,28]
[320706789,1711524641475,-158.91989118,0.00051746,60]
[320706790,1711524641485,-151.032716,0.00051798,100]
[320706791,1711524641495,-419.92478347,0.00051824,49]
[320706792,1711524641504,-170.91822185,0.00051877,60]
[320706793,1711524641519,-500.0,0.00052054,60]
[320706794,1711524641528,-3000.0,0.00052054,120]
[320706795,1711524641538,-1508.59,0.00052054,2]
[320706796,1711524641547,-3000.0,0.00052191,120]
[320706797,1711524641558,-151.032716,0.00052198,101]
[320706798,1711524641568,-6834.00745834,0.00052235,2]
[320706799,1711524641577,-269.18,0.000523,30]
[320706800,1711524641587,-3000.0,0.00052328,120]
[320706801,1711524641598,-880.0,0.00052334,120]
[320706802,1711524641607,-2076.0,0.000524,2]
[320706803,1711524641617,-200.0,0.000524,30]
[320706804,1711524641627,-800.0,0.000524,30]
[320706805,1711524641636,-500.0,0.000524,30]
[320706806,1711524641646,-200.0,0.000524,30]
[320706807,1711524641656,-3000.0,0.00052465,120]
[320706808,1711524641666,-151.032715,0.00052498,99]
[320706809,1711524641675,-349.64,0.000525,14]
[320706810,1711524641685,-2000.0,0.000525,120]
[320706811,1711524641695,-8323.33217451,0.00052537,29]
[320706812,1711524641705,-3000.0,0.00052602,120]
[320706813,1711524641714,-3000.0,0.00052739,120]
[320706814,1711524641724,-151.032716,0.00052798,102]
[320706815,1711524641734,-170.8,0.000528,7]
[320706816,1711524641743,-566.8,0.00052833,2]
[320706817,1711524641753,-500.0,0.00052876,60]
[320706818,1711524641762,-3000.0,0.00052876,120]
[320706819,1711524641772,-1508.59,0.00052876,120]
[320706820,1711524641782,-150.0,0.00052899,14]
[320706821,1711524641793,-167542.53166498,0.000529,18]
[320706822,1711524641808,-1204043.20005407,0.000529,18]
[320706823,1711524641818,-151.0,0.000529,120]
[320706824,1711524641827,-449.895944,0.000529,120]
[320706825,1711524641836,-449.895944,0.000529,120]
[320706826,1711524641847,-218.726235,0.000529,120]
[320706827,1711524641856,-218.726235,0.000529,120]
[320706828,1711524641867,-151.678762,0.000529,120]
[320706829,1711524641877,-1200.620511,0.000529,120]
[320706830,1711524641887,-540.245892,0.000529,120]
[320706831,1711524641899,-1200.620511,0.000529,120]
[320706832,1711524641908,-540.245892,0.000529,120]
[320706833,1711524641918,-151.0,0.000529,120]
[320706834,1711524641929,-151.0,0.000529,7]
[320706835,1711524641939,-151.770225,0.000529,120]
[320706836,1711524641950,-523.683972,0.000529,120]
[320706837,1711524641960,-523.683972,0.000529,120]
[320706838,1711524641971,-151.0,0.000529,60]
[320706839,1711524641980,-151.0,0.000529,60]
[320706840,1711524641989,-193.071608,0.000529,120]
[320706841,1711524641999,-151.0,0.000529,120]
[320706842,1711524642009,-151.0,0.000529,120]
[320706843,1711524642019,-151.0,0.000529,120]
[320706844,1711524642029,-151.0,0.000529,120]
[320706845,1711524642038,-177.051292,0.000529,120]
[320706846,1711524642048,-877.388448,0.000529,120]
[320706847,1711524642058,-177.051292,0.000529,120]
[320706848,1711524642068,-877.388448,0.000529,120]
[320706849,1711524642078,-192.42476,0.000529,120]
[320706850,1711524642087,-192.42476,0.000529,120]
[320706851,1711524642097,-182.384651,0.000529,120]
[320706852,1711524642107,-182.384651,0.000529,120]
[320706853,1711524642117,-151.0,0.000529,120]
[320706854,1711524642130,-151.0,0.000529,120]
[320706855,1711524642140,-153.205536,0.000529,120]
[320706856,1711524642150,-353.081644,0.000529,120]
[320706857,1711524642160,-353.081644,0.000529,120]
[320706858,1711524642170,-151.0,0.000529,120]
[320706859,1711524642180,-155.167412,0.000529,120]
[320706860,1711524642191,-151.0,0.000529,120]
[320706861,1711524642202,-151.0,0.000529,120]
[320706862,1711524642212,-151.0,0.000529,120]
[320706863,1711524642222,-151.0,0.000529,120]
[320706864,1711524642232,-151.0,0.000529,120]
[320706865,1711524642242,-151.0,0.000529,120]
[320706866,1711524642252,-151.0,0.000529,120]
[320706867,1711524642264,-151.0,0.000529,120]
[320706868,1711524642273,-151.0,0.000529,120]
[320706869,1711524642283,-151.0,0.000529,7]
[320706870,1711524642293,-151.0,0.000529,120]
[320706871,1711524642303,-151.0,0.000529,120]
[320706872,1711524642313,-151.0,0.000529,120]
[320706873,1711524642323,-151.0,0.000529,120]
[320706874,1711524642333,-151.0,0.000529,120]
[320706875,1711524642353,-151.0,0.000529,120]
[320706876,1711524642365,-151.0,0.000529,120]
[320706877,1711524642378,-151.0,0.000529,120]
[320706878,1711524642388,-151.0,0.000529,120]
[320706879,1711524642398,-151.0,0.000529,120]
[320706880,1711524642408,-151.0,0.000529,120]
[320706881,1711524642418,-151.0,0.000529,120]
[320706882,1711524642428,-151.0,0.000529,120]
[320706883,1711524642438,-183.918009,0.000529,30]
[320706885,1711524642640,-182.296006,0.000529,120]
[320706886,1711524642667,-182.296006,0.000529,120]
[320706887,1711524642676,-204.025157,0.000529,120]
[320706888,1711524642686,-204.025157,0.000529,120]
[320706889,1711524642695,-151.334418,0.000529,120]
[320706890,1711524642704,-151.0,0.000529,120]
[320706891,1711524642714,-151.0,0.000529,120]
[320706892,1711524642723,-151.0,0.000529,120]
[320706893,1711524642732,-173.957952,0.000529,30]
[320706894,1711524642741,-151.0,0.000529,120]
[320706895,1711524642752,-173.957952,0.000529,30]
[320706896,1711524642762,-151.0,0.000529,120]
[320706897,1711524642771,-854.646827,0.000529,120]
[320706898,1711524642780,-151.0,0.000529,120]
[320706899,1711524642789,-854.646827,0.000529,120]
[320706900,1711524642800,-1294.006513,0.000529,120]
[320706901,1711524642812,-1534.15296821,0.00053,4]
[320706902,1711524642822,-3015.94417672,0.00053,120]
[320706903,1711524642831,-2481.86930834,0.00053013,120]
[320706904,1711524642841,-163.0,0.00053096,120]
[320706905,1711524642851,-151.032716,0.00053198,103]
[320706906,1711524642861,-2062.64032862,0.00053244,2]
[320706907,1711524642872,-419.92478347,0.00053396,51]
[320706908,1711524642884,-8323.33217451,0.00053472,31]
[320706909,1711524642897,-161.032716,0.00053498,104]
[320706910,1711524642906,-177.49805552,0.00053521,60]
[320706911,1711524642917,-157.17508246,0.00053648,60]
[320706912,1711524642927,-158.91989118,0.00053659,60]
[320706913,1711524642936,-58000.0,0.00053689,7]
[320706914,1711524642945,-500.0,0.00053698,60]
[320706915,1711524642955,-58000.0,0.00053698,7]
[320706916,1711524642966,-1508.59,0.00053698,120]
[320706917,1711524642976,-646.0,0.00053699,120]
[320706918,1711524642987,-778.0,0.00053699,120]
[320706919,1711524642996,-567.0,0.00053699,120]
[320706920,1711524643005,-269.18,0.000537,30]
[320706921,1711524643015,-151.032716,0.00053798,105]
[320706922,1711524643026,-3171.58,0.00053805,120]
[320706923,1711524643035,-158.91989118,0.00053956,60]
[320706924,1711524643044,-290.9387269,0.00053998,2]
[320706925,1711524643054,-216.75745888,0.00053998,4]
[320706926,1711524643064,-35022.89177397,0.00053998,4]
[320706927,1711524643074,-783.31257943,0.00053998,4]
[320706928,1711524643083,-150.0,0.00053999,14]
[320706929,1711524643092,-500000.0,0.00054,4]
[320706930,1711524643102,-151.0,0.00054,120]
[320706931,1711524643111,-156.77025,0.00054,120]
[320706932,1711524643121,-151.0,0.00054,120]
[320706933,1711524643132,-153.588542,0.00054,120]
[320706934,1711524643141,-349.64,0.00054,14]
[320706935,1711524643150,-177.051292,0.00054,120]
[320706936,1711524643159,-877.388448,0.00054,120]
[320706937,1711524643168,-177.051292,0.00054,120]
[320706938,1711524643177,-877.388448,0.00054,120]
[320706939,1711524643186,-192.42476,0.00054,120]
[320706940,1711524643196,-192.42476,0.00054,120]
[320706941,1711524643206,-182.384651,0.00054,120]
[320706942,1711524643215,-182.384651,0.00054,120]